[Event "*** Titled Tuesday Blitz"]
[Site "Chess.com"]
[Date "2018.05.01"]
[Round "2"]
[White "nubair1198"]
[Black "Annawel"]
[Result "1/2-1/2"]
[WhiteElo "2532"]
[BlackElo "2801"]
[TimeControl "180+2"]
[EndTime "13:23:44 PDT"]
[Termination "Game drawn by agreement"]

1. d4 {[%clk 0:03:01.9]} 1... Nf6 {[%clk 0:03:00.9]} 2. c4 {[%clk 0:03:02.7]}
2... d6 {[%clk 0:03:01]} 3. Nf3 {[%clk 0:03:02.7]} 3... Nbd7 {[%clk 0:03:00.5]}
4. Nc3 {[%clk 0:03:00.8]} 4... e5 {[%clk 0:03:01.5]} 5. e4 {[%clk 0:03:02.1]}
5... Be7 {[%clk 0:03:01.9]} 6. Be2 {[%clk 0:03:02.9]} 6... O-O {[%clk
0:03:02.9]} 7. O-O {[%clk 0:03:03.9]} 7... c6 {[%clk 0:03:00.3]} 8. Qc2 {[%clk
0:03:04.5]} 8... Re8 {[%clk 0:03:00.2]} 9. Re1 {[%clk 0:02:53.7]} 9... a6 {[%clk
0:03:00]} 10. d5 {[%clk 0:02:51.4]} 10... cxd5 {[%clk 0:02:56.4]} 11. cxd5
{[%clk 0:01:53]} 11... b5 {[%clk 0:02:55.7]} 12. b4 {[%clk 0:01:23.4]} 12... Bb7
{[%clk 0:02:52.2]} 13. a4 {[%clk 0:01:18.9]} 13... bxa4 {[%clk 0:02:41.5]} 14.
Qxa4 {[%clk 0:01:16.5]} 14... a5 {[%clk 0:02:34.2]} 15. bxa5 {[%clk 0:01:03.9]}
15... Nc5 {[%clk 0:02:34.7]} 16. Qb4 {[%clk 0:01:04]} 16... Ba6 {[%clk
0:02:35.9]} 17. Bxa6 {[%clk 0:01:02.9]} 17... Rxa6 {[%clk 0:02:36.9]} 18. Qb5
{[%clk 0:01:00.1]} 18... Qa8 {[%clk 0:02:35.4]} 19. Be3 {[%clk 0:00:41.1]} 19...
Rb8 {[%clk 0:02:36.1]} 20. Qc4 {[%clk 0:00:42]} 20... Nb3 {[%clk 0:02:25.8]} 21.
Ra3 {[%clk 0:00:39.6]} 21... Nxa5 {[%clk 0:02:22.8]} 22. Qa2 {[%clk 0:00:41.1]}
22... Bd8 {[%clk 0:02:18]} 23. Ra1 {[%clk 0:00:41.8]} 23... Qb7 {[%clk
0:02:18.5]} 24. Rb1 {[%clk 0:00:38.5]} 24... Qc8 {[%clk 0:02:18]} 25. Nb5 {[%clk
0:00:37]} 25... Nxe4 {[%clk 0:02:16.9]} 26. h3 {[%clk 0:00:31]} 26... h6 {[%clk
0:02:11.2]} 27. Na7 {[%clk 0:00:29.1]} 27... Rxb1+ {[%clk 0:02:04.9]} 28. Qxb1
{[%clk 0:00:31]} 28... Qa8 {[%clk 0:02:02.7]} 29. Qxe4 {[%clk 0:00:28.7]} 29...
Rxa7 {[%clk 0:02:03.6]} 30. Bxa7 {[%clk 0:00:30.5]} 30... Qxa7 {[%clk
0:02:05.5]} 31. Qb4 {[%clk 0:00:31.3]} 31... Bc7 {[%clk 0:01:44]} 32. Rc3 {[%clk
0:00:13.2]} 32... g6 {[%clk 0:01:31.2]} 33. Nxe5 {[%clk 0:00:14.4]} 33... dxe5
{[%clk 0:01:31.7]} 34. Qe7 {[%clk 0:00:15.9]} 34... Bb6 {[%clk 0:01:28.1]} 35.
d6 {[%clk 0:00:17.3]} 35... Bxf2+ {[%clk 0:01:28.5]} 36. Kh1 {[%clk 0:00:18.4]}
36... Qb8 {[%clk 0:01:16.8]} 37. Rc1 {[%clk 0:00:14.1]} 37... Nc6 {[%clk
0:01:11.6]} 38. Qc7 {[%clk 0:00:15.2]} 38... Qxc7 {[%clk 0:01:08.1]} 39. dxc7
{[%clk 0:00:06.4]} 39... Ne7 {[%clk 0:01:10]} 40. Rb1 {[%clk 0:00:06.6]} 40...
Kg7 {[%clk 0:00:37.6]} 41. Rb8 {[%clk 0:00:04.7]} 41... Nf5 {[%clk 0:00:35.9]}
42. Rb3 {[%clk 0:00:02.9]} 42... Nd6 {[%clk 0:00:34.6]} 43. Rd3 {[%clk
0:00:03.4]} 43... Bb6 {[%clk 0:00:35.2]} 44. Rxd6 {[%clk 0:00:03.8]} 44... Bxc7
{[%clk 0:00:36.7]} 45. Rc6 {[%clk 0:00:05.4]} 45... Bd8 {[%clk 0:00:37.9]} 46.
g4 {[%clk 0:00:07.3]} 46... Bg5 {[%clk 0:00:36.9]} 47. Kg2 {[%clk 0:00:09.2]}
47... f5 {[%clk 0:00:37.4]} 48. Kf3 {[%clk 0:00:11.1]} 48... Kf7 {[%clk
0:00:38.6]} 49. Rc7+ {[%clk 0:00:09.6]} 49... Be7 {[%clk 0:00:36.3]} 50. Rb7
{[%clk 0:00:10.2]} 50... Ke6 {[%clk 0:00:37.3]} 51. Rb6+ {[%clk 0:00:11]} 51...
Bd6 {[%clk 0:00:38.8]} 52. gxf5+ {[%clk 0:00:12.1]} 52... gxf5 {[%clk
0:00:39.6]} 53. Ra6 {[%clk 0:00:13.6]} 53... e4+ {[%clk 0:00:41]} 54. Ke3 {[%clk
0:00:14.6]} 54... h5 {[%clk 0:00:35.5]} 55. Kd4 {[%clk 0:00:16]} 55... h4 {[%clk
0:00:35.2]} 56. Rb6 {[%clk 0:00:16.8]} 56... Ke7 {[%clk 0:00:33.5]} 57. Kd5
{[%clk 0:00:18.2]} 57... Bg3 {[%clk 0:00:34.6]} 58. Re6+ {[%clk 0:00:16.8]}
58... Kf7 {[%clk 0:00:35.9]} 59. Ra6 {[%clk 0:00:16.6]} 59... e3 {[%clk
0:00:34.7]} 60. Ra2 {[%clk 0:00:15.7]} 60... Kf6 {[%clk 0:00:30.5]} 61. Kd4
{[%clk 0:00:17.2]} 61... Bf2 {[%clk 0:00:30.9]} 62. Kd3 {[%clk 0:00:18.3]} 62...
Kg5 {[%clk 0:00:30.2]} 63. Ra4 {[%clk 0:00:19.1]} 63... f4 {[%clk 0:00:30.8]}
64. Ke2 {[%clk 0:00:20.5]} 64... Bg3 {[%clk 0:00:30.6]} 65. Kf3 {[%clk
0:00:22.4]} 65... Kf5 {[%clk 0:00:32.3]} 66. Ra5+ {[%clk 0:00:23.3]} 66... Ke6
{[%clk 0:00:33.7]} 67. Rb5 {[%clk 0:00:23.7]} 67... Kd6 {[%clk 0:00:35]} 68. Ra5
{[%clk 0:00:24.1]} 68... Kc6 {[%clk 0:00:36.3]} 69. Re5 {[%clk 0:00:24.1]} 69...
Kd6 {[%clk 0:00:35.6]} 70. Ra5 {[%clk 0:00:25]} 70... Be1 {[%clk 0:00:34.6]} 71.
Rf5 {[%clk 0:00:25.1]} 71... Bg3 {[%clk 0:00:27.9]} 72. Rh5 {[%clk 0:00:26]}
1/2-1/2

[Event "*** Titled Tuesday Blitz"]
[Site "Chess.com"]
[Date "2018.05.01"]
[Round "2"]
[White "Angry_Twin"]
[Black "Abrito99"]
[Result "0-1"]
[WhiteElo "2690"]
[BlackElo "2513"]
[TimeControl "180+2"]
[EndTime "13:23:51 PDT"]
[Termination "Abrito99 won by resignation"]

1. e4 {[%clk 0:03:01.6]} 1... c5 {[%clk 0:02:54.8]} 2. Nf3 {[%clk 0:03:02.8]}
2... e6 {[%clk 0:02:56]} 3. d4 {[%clk 0:03:04]} 3... cxd4 {[%clk 0:02:57.9]} 4.
Nxd4 {[%clk 0:03:05.9]} 4... Nc6 {[%clk 0:02:59.2]} 5. Nc3 {[%clk 0:03:07.5]}
5... Qc7 {[%clk 0:03:00]} 6. Be3 {[%clk 0:03:08.8]} 6... a6 {[%clk 0:03:01.2]}
7. Qd2 {[%clk 0:03:09.4]} 7... Be7 {[%clk 0:03:00.9]} 8. f4 {[%clk 0:03:09.8]}
8... b5 {[%clk 0:02:58.8]} 9. O-O-O {[%clk 0:03:08.3]} 9... b4 {[%clk 0:02:48]}
10. Nce2 {[%clk 0:03:08.6]} 10... Nf6 {[%clk 0:02:44.4]} 11. Ng3 {[%clk
0:03:09.2]} 11... h5 {[%clk 0:02:42.5]} 12. Bd3 {[%clk 0:03:06.3]} 12... h4
{[%clk 0:02:43]} 13. Nge2 {[%clk 0:03:07.4]} 13... Bb7 {[%clk 0:02:36.6]} 14.
Kb1 {[%clk 0:03:08.2]} 14... Nxd4 {[%clk 0:02:24.8]} 15. Bxd4 {[%clk 0:03:10.1]}
15... Nxe4 {[%clk 0:02:25.5]} 16. Qe3 {[%clk 0:03:11.4]} 16... Nf6 {[%clk
0:02:23.8]} 17. Rhg1 {[%clk 0:03:11.1]} 17... a5 {[%clk 0:02:07.8]} 18. g4
{[%clk 0:03:11.5]} 18... hxg3 {[%clk 0:02:04.6]} 19. hxg3 {[%clk 0:03:13.4]}
19... Ng4 {[%clk 0:02:04.8]} 20. Qd2 {[%clk 0:03:13.7]} 20... Nh2 {[%clk
0:02:00.7]} 21. Bxg7 {[%clk 0:03:08.6]} 21... Nf3 {[%clk 0:01:52.3]} 22. Qe3
{[%clk 0:03:07.7]} 22... Rg8 {[%clk 0:01:48.9]} 23. Rgf1 {[%clk 0:03:08.6]}
23... Nh2 {[%clk 0:01:45.9]} 24. Bd4 {[%clk 0:03:04.7]} 24... Nxf1 {[%clk
0:01:44.2]} 25. Rxf1 {[%clk 0:03:06.6]} 25... Qc6 {[%clk 0:01:39.6]} 26. f5
{[%clk 0:03:02.9]} 26... Qg2 {[%clk 0:01:31.4]} 27. Rg1 {[%clk 0:03:01.7]} 27...
Qf3 {[%clk 0:01:32.3]} 28. Qh6 {[%clk 0:02:58.6]} 28... Be4 {[%clk 0:01:30.8]}
29. Bxe4 {[%clk 0:02:53.6]} 29... Qxe4 {[%clk 0:01:31.2]} 30. Qd2 {[%clk
0:02:54]} 30... Qxf5 {[%clk 0:01:30.4]} 31. Nc1 {[%clk 0:02:52.4]} 31... Bg5
{[%clk 0:01:29]} 32. Be3 {[%clk 0:02:52.4]} 32... Bxe3 {[%clk 0:01:28.7]} 33.
Qxe3 {[%clk 0:02:54.3]} 33... Rc8 {[%clk 0:01:29.4]} 34. Nd3 {[%clk 0:02:55.4]}
34... Rh8 {[%clk 0:01:28.2]} 35. g4 {[%clk 0:02:50.5]} 35... Qd5 {[%clk
0:01:21]} 36. Nf4 {[%clk 0:02:45.7]} 36... Qc6 {[%clk 0:01:22.5]} 37. Ne2 {[%clk
0:02:17.2]} 37... Rh1 {[%clk 0:01:21.8]} 38. Rxh1 {[%clk 0:02:18.3]} 38... Qxh1+
{[%clk 0:01:22.4]} 39. Nc1 {[%clk 0:02:19.8]} 39... Qd1 {[%clk 0:01:22.6]} 40.
Qe4 {[%clk 0:02:19.9]} 40... d5 {[%clk 0:01:21.6]} 41. Qh7 {[%clk 0:02:20.5]}
41... Qxg4 {[%clk 0:01:15.3]} 42. b3 {[%clk 0:02:21.9]} 42... Qg6 {[%clk
0:01:13.5]} 43. Qh2 {[%clk 0:02:21.2]} 43... Rc3 {[%clk 0:01:14.7]} 44. Qe2
{[%clk 0:02:20]} 44... Kf8 {[%clk 0:01:12.3]} 45. Kb2 {[%clk 0:02:19.9]} 45...
Qg7 {[%clk 0:01:12.5]} 46. Kb1 {[%clk 0:02:21]} 46... Qg6 {[%clk 0:01:12.6]} 47.
Kb2 {[%clk 0:02:22.1]} 47... Qe4 {[%clk 0:01:14.2]} 48. Qd2 {[%clk 0:02:22.7]}
48... Qe3 {[%clk 0:01:13.5]} 49. Qh2 {[%clk 0:02:23.2]} 49... Ke7 {[%clk
0:01:12.5]} 50. Ne2 {[%clk 0:02:16.6]} 50... Rc8 {[%clk 0:01:08.9]} 51. Nf4
{[%clk 0:02:16.8]} 51... Qe5+ {[%clk 0:01:06.7]} 52. Kb1 {[%clk 0:02:16.6]}
52... Kd7 {[%clk 0:01:05.9]} 53. Qf2 {[%clk 0:02:17.2]} 53... Rh8 {[%clk
0:01:00.4]} 54. Nd3 {[%clk 0:02:06.2]} 54... Rh1+ {[%clk 0:01:00.3]} 55. Nc1
{[%clk 0:02:07.5]} 55... f5 {[%clk 0:00:47]} 56. Qa7+ {[%clk 0:01:30.7]} 56...
Qc7 {[%clk 0:00:48.2]} 57. Qd4 {[%clk 0:01:30.1]} 57... Rh2 {[%clk 0:00:46]} 58.
Qd3 {[%clk 0:01:29.8]} 58... f4 {[%clk 0:00:45.2]} 59. Ne2 {[%clk 0:01:29.8]}
59... Rh1+ {[%clk 0:00:40.3]} 60. Kb2 {[%clk 0:01:30.8]} 60... Qe5+ {[%clk
0:00:41]} 61. Nd4 {[%clk 0:01:32.2]} 61... Ke7 {[%clk 0:00:35.9]} 62. c3 {[%clk
0:01:32]} 62... bxc3+ {[%clk 0:00:35.1]} 63. Qxc3 {[%clk 0:01:32.1]} 63... Rh2+
{[%clk 0:00:36]} 64. Ka1 {[%clk 0:01:14.3]} 64... Kf6 {[%clk 0:00:31.6]} 65. a4
{[%clk 0:00:45.1]} 65... Rh1+ {[%clk 0:00:30.3]} 66. Ka2 {[%clk 0:00:45.4]}
66... Rd1 {[%clk 0:00:25.4]} 67. Qc8 {[%clk 0:00:41.1]} 67... Qxd4 {[%clk
0:00:25]} 68. Qh8+ {[%clk 0:00:41.2]} 68... Kf5 {[%clk 0:00:26]} 69. Qh7+ {[%clk
0:00:42]} 69... Ke5 {[%clk 0:00:25.1]} 70. Qh8+ {[%clk 0:00:42.3]} 70... Ke4
{[%clk 0:00:26.5]} 71. Qh7+ {[%clk 0:00:43.5]} 71... Ke3 {[%clk 0:00:27.5]} 72.
Qh3+ {[%clk 0:00:38.8]} 72... f3 {[%clk 0:00:28.9]} 73. Qxe6+ {[%clk 0:00:40]}
73... Qe4 {[%clk 0:00:27.6]} 74. Qb6+ {[%clk 0:00:40.8]} 74... Ke2 {[%clk
0:00:28.8]} 75. Qb5+ {[%clk 0:00:41.3]} 75... Rd3 {[%clk 0:00:28.9]} 76. Qxa5
{[%clk 0:00:42.1]} 76... f2 {[%clk 0:00:29.7]} 0-1

[Event "*** Titled Tuesday Blitz"]
[Site "Chess.com"]
[Date "2018.05.01"]
[Round "2"]
[White "Shtembuliak"]
[Black "Abund"]
[Result "1/2-1/2"]
[WhiteElo "2678"]
[BlackElo "2494"]
[TimeControl "180+2"]
[EndTime "13:24:25 PDT"]
[Termination "Game drawn - insufficient material"]

1. c4 {[%clk 0:03:01.9]} 1... c5 {[%clk 0:02:59.5]} 2. Nc3 {[%clk 0:03:00.9]}
2... Nf6 {[%clk 0:02:59.8]} 3. Nf3 {[%clk 0:03:02.3]} 3... Nc6 {[%clk
0:02:59.9]} 4. e3 {[%clk 0:03:02.6]} 4... e6 {[%clk 0:03:00.5]} 5. d4 {[%clk
0:03:03.1]} 5... d5 {[%clk 0:03:01.1]} 6. cxd5 {[%clk 0:03:03.7]} 6... Nxd5
{[%clk 0:02:50.6]} 7. Bd3 {[%clk 0:03:04]} 7... Be7 {[%clk 0:02:47.6]} 8. O-O
{[%clk 0:03:04.5]} 8... O-O {[%clk 0:02:44.1]} 9. a3 {[%clk 0:02:58.7]} 9...
cxd4 {[%clk 0:02:42.4]} 10. exd4 {[%clk 0:02:59.4]} 10... Bf6 {[%clk 0:02:31.6]}
11. Ne4 {[%clk 0:02:44.6]} 11... Bxd4 {[%clk 0:02:15.1]} 12. Neg5 {[%clk
0:02:37.6]} 12... Nf6 {[%clk 0:02:10.9]} 13. Nxd4 {[%clk 0:02:13.8]} 13... Qxd4
{[%clk 0:02:02.9]} 14. Be3 {[%clk 0:02:14]} 14... Qxb2 {[%clk 0:01:59.4]} 15.
Qa4 {[%clk 0:01:36.7]} 15... Qc3 {[%clk 0:01:24.4]} 16. Rfd1 {[%clk 0:01:27.6]}
16... Qa5 {[%clk 0:01:14.6]} 17. Qh4 {[%clk 0:01:27]} 17... h6 {[%clk
0:01:15.4]} 18. f4 {[%clk 0:01:07.3]} 18... e5 {[%clk 0:00:51.2]} 19. Ne4 {[%clk
0:00:31.7]} 19... Nd5 {[%clk 0:00:30.2]} 20. Bc5 {[%clk 0:00:22.3]} 20... Rd8
{[%clk 0:00:27.1]} 21. Bc4 {[%clk 0:00:20.3]} 21... Be6 {[%clk 0:00:21.2]} 22.
f5 {[%clk 0:00:20.5]} 22... Bxf5 {[%clk 0:00:18.7]} 23. Bb4 {[%clk 0:00:11.4]}
23... Ndxb4 {[%clk 0:00:18]} 24. axb4 {[%clk 0:00:11.8]} 24... Qb6+ {[%clk
0:00:19.2]} 25. Kh1 {[%clk 0:00:12.5]} 25... Bxe4 {[%clk 0:00:17.6]} 26. Qxe4
{[%clk 0:00:13.1]} 26... Rd4 {[%clk 0:00:17.4]} 27. Qe2 {[%clk 0:00:10.2]} 27...
Rad8 {[%clk 0:00:17.3]} 28. Rf1 {[%clk 0:00:11.4]} 28... R8d7 {[%clk 0:00:16.3]}
29. b5 {[%clk 0:00:11.9]} 29... Nd8 {[%clk 0:00:13.6]} 30. Qxe5 {[%clk
0:00:11.4]} 30... Qd6 {[%clk 0:00:13]} 31. Qe8+ {[%clk 0:00:10.7]} 31... Qf8
{[%clk 0:00:13.8]} 32. Qe2 {[%clk 0:00:11.8]} 32... Re7 {[%clk 0:00:11.5]} 33.
Qa2 {[%clk 0:00:11.4]} 33... Rc7 {[%clk 0:00:11.8]} 34. Bb3 {[%clk 0:00:11.6]}
34... b6 {[%clk 0:00:12.1]} 35. h3 {[%clk 0:00:11.1]} 35... Rcd7 {[%clk
0:00:13]} 36. Rf2 {[%clk 0:00:11.4]} 36... Qe7 {[%clk 0:00:11.8]} 37. Raf1
{[%clk 0:00:12]} 37... Qe8 {[%clk 0:00:07.8]} 38. Qb2 {[%clk 0:00:11.5]} 38...
R4d6 {[%clk 0:00:08.2]} 39. Qc2 {[%clk 0:00:11.5]} 39... Re7 {[%clk 0:00:09]}
40. Qc8 {[%clk 0:00:09.1]} 40... Rdd7 {[%clk 0:00:06.8]} 41. Rf3 {[%clk
0:00:07.5]} 41... Ne6 {[%clk 0:00:07.9]} 42. Qc6 {[%clk 0:00:06.5]} 42... Nd4
{[%clk 0:00:07.8]} 43. Rxf7 {[%clk 0:00:04.2]} 43... Nxc6 {[%clk 0:00:03.8]} 44.
Rf8+ {[%clk 0:00:03.7]} 44... Kh7 {[%clk 0:00:04.4]} 45. Bg8+ {[%clk 0:00:04.4]}
45... Kg6 {[%clk 0:00:04.8]} 46. Rxe8 {[%clk 0:00:05.6]} 46... Rxe8 {[%clk
0:00:05.9]} 47. bxc6 {[%clk 0:00:07.5]} 47... Rc7 {[%clk 0:00:06.7]} 48. Bd5
{[%clk 0:00:08.7]} 48... Re5 {[%clk 0:00:07.3]} 49. Bf3 {[%clk 0:00:09.4]} 49...
Rc5 {[%clk 0:00:08.2]} 50. Ra1 {[%clk 0:00:10.4]} 50... a5 {[%clk 0:00:07.9]}
51. Kh2 {[%clk 0:00:10.9]} 51... R5xc6 {[%clk 0:00:09.2]} 52. Be4+ {[%clk
0:00:11]} 52... Kf7 {[%clk 0:00:09.9]} 53. Bxc6 {[%clk 0:00:12.9]} 53... Rxc6
{[%clk 0:00:11.5]} 54. Kg3 {[%clk 0:00:14.5]} 54... Rf6 {[%clk 0:00:13]} 55. Kg4
{[%clk 0:00:15.5]} 55... Ke7 {[%clk 0:00:13.5]} 56. Kh5 {[%clk 0:00:16.4]} 56...
Kf7 {[%clk 0:00:14.3]} 57. g4 {[%clk 0:00:17.2]} 57... Rd6 {[%clk 0:00:14.6]}
58. h4 {[%clk 0:00:17.8]} 58... Rd5+ {[%clk 0:00:12.5]} 59. g5 {[%clk
0:00:18.7]} 59... hxg5 {[%clk 0:00:13.6]} 60. hxg5 {[%clk 0:00:19.3]} 60... g6+
{[%clk 0:00:14.3]} 61. Kh6 {[%clk 0:00:19.9]} 61... Rf5 {[%clk 0:00:15.4]} 62.
Rc1 {[%clk 0:00:20.7]} 62... b5 {[%clk 0:00:11.6]} 63. Rc7+ {[%clk 0:00:21.5]}
63... Ke6 {[%clk 0:00:12.6]} 64. Kxg6 {[%clk 0:00:22.8]} 64... Rf1 {[%clk
0:00:14]} 65. Ra7 {[%clk 0:00:22.9]} 65... a4 {[%clk 0:00:14.7]} 66. Ra5 {[%clk
0:00:23.1]} 66... Rb1 {[%clk 0:00:15.7]} 67. Kg7 {[%clk 0:00:24]} 67... Rb3
{[%clk 0:00:13.3]} 68. g6 {[%clk 0:00:24.7]} 68... a3 {[%clk 0:00:14.5]} 69. Kf8
{[%clk 0:00:24.4]} 69... Rf3+ {[%clk 0:00:14.6]} 70. Kg8 {[%clk 0:00:25.1]}
70... b4 {[%clk 0:00:14.2]} 71. g7 {[%clk 0:00:26.2]} 71... Rg3 {[%clk
0:00:14.8]} 72. Ra6+ {[%clk 0:00:22.4]} 72... Kd5 {[%clk 0:00:15.3]} 73. Kf7
{[%clk 0:00:21.5]} 73... Rxg7+ {[%clk 0:00:13.8]} 74. Kxg7 {[%clk 0:00:22.7]}
74... Kc4 {[%clk 0:00:14.8]} 75. Kf6 {[%clk 0:00:24.1]} 75... Kb3 {[%clk
0:00:14.8]} 76. Ke5 {[%clk 0:00:25.5]} 76... a2 {[%clk 0:00:08.8]} 77. Kd4
{[%clk 0:00:26.2]} 77... Kb2 {[%clk 0:00:10]} 78. Kc4 {[%clk 0:00:26]} 78... b3
{[%clk 0:00:10.8]} 79. Kb4 {[%clk 0:00:16.7]} 79... Kc2 {[%clk 0:00:06.3]} 80.
Kc4 {[%clk 0:00:13.3]} 80... a1=Q {[%clk 0:00:03.7]} 81. Rxa1 {[%clk 0:00:13.3]}
81... b2 {[%clk 0:00:05.6]} 82. Ra2 {[%clk 0:00:14.5]} 82... Kc1 {[%clk
0:00:06]} 83. Rxb2 {[%clk 0:00:12.6]} 83... Kxb2 {[%clk 0:00:06.8]} 1/2-1/2

[Event "*** Titled Tuesday Blitz"]
[Site "Chess.com"]
[Date "2018.05.01"]
[Round "2"]
[White "ChessicallyInclined"]
[Black "AnkitGajwa"]
[Result "1-0"]
[WhiteElo "2193"]
[BlackElo "2129"]
[TimeControl "180+2"]
[EndTime "13:24:42 PDT"]
[Termination "ChessicallyInclined won by checkmate"]

1. d4 {[%clk 0:03:01.9]} 1... d5 {[%clk 0:02:56.8]} 2. c4 {[%clk 0:03:02.7]}
2... c6 {[%clk 0:02:52.7]} 3. Nf3 {[%clk 0:03:02.1]} 3... Nf6 {[%clk 0:02:50.7]}
4. Nc3 {[%clk 0:02:55.5]} 4... e6 {[%clk 0:02:45.7]} 5. Bg5 {[%clk 0:02:55.8]}
5... dxc4 {[%clk 0:02:43.6]} 6. e4 {[%clk 0:02:55.2]} 6... b5 {[%clk 0:02:41.2]}
7. e5 {[%clk 0:02:56.3]} 7... h6 {[%clk 0:02:39.5]} 8. Bh4 {[%clk 0:02:56.9]}
8... g5 {[%clk 0:02:38.7]} 9. Nxg5 {[%clk 0:02:57.9]} 9... hxg5 {[%clk
0:02:37.7]} 10. Bxg5 {[%clk 0:02:59.8]} 10... Nbd7 {[%clk 0:02:36.1]} 11. g3
{[%clk 0:03:00.3]} 11... Bb7 {[%clk 0:02:35.4]} 12. Bg2 {[%clk 0:02:58.8]} 12...
Rg8 {[%clk 0:02:27.9]} 13. h4 {[%clk 0:02:57.8]} 13... Rxg5 {[%clk 0:02:27.5]}
14. hxg5 {[%clk 0:02:58.1]} 14... Nd5 {[%clk 0:02:27.7]} 15. g6 {[%clk
0:02:57.3]} 15... fxg6 {[%clk 0:02:24.7]} 16. Qg4 {[%clk 0:02:56.5]} 16... Qe7
{[%clk 0:02:18.6]} 17. Ne4 {[%clk 0:02:30.5]} 17... Qb4+ {[%clk 0:02:08.4]} 18.
Kf1 {[%clk 0:02:30.1]} 18... O-O-O {[%clk 0:02:08.1]} 19. Qxe6 {[%clk
0:02:21.5]} 19... Qxb2 {[%clk 0:02:06.1]} 20. Re1 {[%clk 0:02:19.1]} 20... Qxd4
{[%clk 0:02:00.9]} 21. Nd6+ {[%clk 0:02:13.1]} 21... Bxd6 {[%clk 0:01:56.6]} 22.
Qxd6 {[%clk 0:02:15]} 22... Qc5 {[%clk 0:01:33.1]} 23. Qxg6 {[%clk 0:02:05.9]}
23... Ne7 {[%clk 0:01:26.8]} 24. Qe4 {[%clk 0:02:01]} 24... c3 {[%clk
0:01:18.5]} 25. Rh7 {[%clk 0:01:52.7]} 25... c2 {[%clk 0:01:11.2]} 26. Qf4
{[%clk 0:01:17.6]} 26... Nxe5 {[%clk 0:01:06]} 27. Bh3+ {[%clk 0:01:06.3]} 27...
Rd7 {[%clk 0:00:19.6]} 28. Bxd7+ {[%clk 0:00:49.7]} 28... Kxd7 {[%clk
0:00:19.4]} 29. Qf5+ {[%clk 0:00:13.6]} 29... Kc7 {[%clk 0:00:14.3]} 30. Rxe7+
{[%clk 0:00:08.5]} 30... Qxe7 {[%clk 0:00:13]} 31. Qxc2 {[%clk 0:00:09.8]} 31...
Qd6 {[%clk 0:00:09.7]} 32. Qf5 {[%clk 0:00:06.5]} 32... Nd3 {[%clk 0:00:07.2]}
33. Re3 {[%clk 0:00:06.5]} 33... Nc5 {[%clk 0:00:06.2]} 34. Qf7+ {[%clk
0:00:04.8]} 34... Kb6 {[%clk 0:00:05.4]} 35. Re7 {[%clk 0:00:05.1]} 35... Qd1+
{[%clk 0:00:05.7]} 36. Kg2 {[%clk 0:00:06.3]} 36... Qd4 {[%clk 0:00:05.5]} 37.
f4 {[%clk 0:00:04.4]} 37... Qd2+ {[%clk 0:00:04.4]} 38. Kh3 {[%clk 0:00:05.2]}
38... Bc8+ {[%clk 0:00:04.8]} 39. f5 {[%clk 0:00:05.4]} 39... Qd3 {[%clk
0:00:03.6]} 40. Kg4 {[%clk 0:00:04.8]} 40... Qd4+ {[%clk 0:00:02]} 41. Kg5
{[%clk 0:00:05.5]} 41... Ne4+ {[%clk 0:00:02.7]} 42. Kg6 {[%clk 0:00:05.8]}
42... Nxg3 {[%clk 0:00:03.4]} 43. f6 {[%clk 0:00:03.5]} 43... Qg4+ {[%clk
0:00:02.7]} 44. Kh7 {[%clk 0:00:04.2]} 44... Bf5+ {[%clk 0:00:03.1]} 45. Kh8
{[%clk 0:00:04.5]} 45... Qh3+ {[%clk 0:00:03.7]} 46. Kg8 {[%clk 0:00:04.7]}
46... Ne4 {[%clk 0:00:03.4]} 47. Rb7+ {[%clk 0:00:05.2]} 47... Kc5 {[%clk
0:00:04.1]} 48. Qe7+ {[%clk 0:00:06]} 48... Kd4 {[%clk 0:00:04.9]} 49. Qb4+
{[%clk 0:00:05.3]} 49... Ke3 {[%clk 0:00:05.2]} 50. Qb3+ {[%clk 0:00:06.2]}
50... Kf4 {[%clk 0:00:05]} 51. Qxh3 {[%clk 0:00:07.2]} 51... Nxf6+ {[%clk
0:00:05.5]} 52. Kf7 {[%clk 0:00:07.8]} 52... Bxh3 {[%clk 0:00:06]} 53. Kxf6
{[%clk 0:00:09.3]} 53... a5 {[%clk 0:00:06.7]} 54. Rb6 {[%clk 0:00:10.3]} 54...
Bg2 {[%clk 0:00:07.3]} 55. Ke6 {[%clk 0:00:11.4]} 55... a4 {[%clk 0:00:08]} 56.
a3 {[%clk 0:00:12.2]} 56... Ke3 {[%clk 0:00:08.3]} 57. Kd6 {[%clk 0:00:12.5]}
57... Kd4 {[%clk 0:00:09]} 58. Rb8 {[%clk 0:00:11.3]} 58... Kc4 {[%clk
0:00:09.6]} 59. Rg8 {[%clk 0:00:11.5]} 59... Bd5 {[%clk 0:00:08.9]} 60. Rg4+
{[%clk 0:00:09.1]} 60... Kc3 {[%clk 0:00:09.6]} 61. Kc5 {[%clk 0:00:09.3]} 61...
Kb2 {[%clk 0:00:10.1]} 62. Kb4 {[%clk 0:00:09.5]} 62... Bc4 {[%clk 0:00:09.6]}
63. Rg6 {[%clk 0:00:09.9]} 63... c5+ {[%clk 0:00:09.7]} 64. Kxc5 {[%clk
0:00:10.3]} 64... Kxa3 {[%clk 0:00:10.3]} 65. Rg3+ {[%clk 0:00:11.8]} 65... Kb2
{[%clk 0:00:09.9]} 66. Kb4 {[%clk 0:00:13.3]} 66... Kc2 {[%clk 0:00:07]} 67.
Rg2+ {[%clk 0:00:13.6]} 67... Kd3 {[%clk 0:00:05.4]} 68. Rg3+ {[%clk 0:00:14.2]}
68... Kd2 {[%clk 0:00:05.6]} 69. Rg2+ {[%clk 0:00:15.4]} 69... Kc1 {[%clk
0:00:05.9]} 70. Kc3 {[%clk 0:00:15.5]} 70... a3 {[%clk 0:00:05.5]} 71. Rg1+
{[%clk 0:00:16.5]} 71... Bf1 {[%clk 0:00:02.9]} 72. Rxf1# {[%clk 0:00:17.5]} 1-0